[Event "Titled Tuesday Blitz November 01 Late 2022"]
[White "Thomforde-Toates, Noah"]
[Black "Urbina Perez, Juan Antonio"]
[WhiteFideId "30951992"]
[BlackFideId "2217368"]
[WhiteElo "2624"]
[BlackElo "2197"]
[Result "0-1"]
[Round "03"]
[TimeControl "180+1"]
[Date "2022.11.02"]
[WhiteClock "0:00:17"]
[BlackClock "0:00:55"]

1. d4 {[%clk 0:03:00]}  d5 {[%clk 0:02:59]} 2. Nc3 {[%clk 0:02:55]}  Nf6 {[%clk 0:02:57]} 3. Bf4 {[%clk 0:02:54]}  Bf5 {[%clk 0:02:56]} 4. f3 {[%clk 0:02:43]}  e6 {[%clk 0:02:56]} 5. g4 {[%clk 0:02:42]}  Bg6 {[%clk 0:02:55]} 6. h4 {[%clk 0:02:42]}  h5 {[%clk 0:02:54]} 7. g5 {[%clk 0:02:42]}  Nfd7 {[%clk 0:02:55]} 8. e3 {[%clk 0:02:42]}  Bd6 {[%clk 0:02:50]} 9. Nh3 {[%clk 0:02:41]}  Bf5 {[%clk 0:02:38]} 10. Bxd6 {[%clk 0:02:20]}  cxd6 {[%clk 0:02:39]} 11. Nf4 {[%clk 0:02:20]}  Qb6 {[%clk 0:02:32]} 12. Rb1 {[%clk 0:02:16]}  Nc6 {[%clk 0:02:27]} 13. Bd3 {[%clk 0:02:14]}  Bxd3 {[%clk 0:02:24]} 14. Qxd3 {[%clk 0:02:14]}  g6 {[%clk 0:02:22]} 15. a3 {[%clk 0:02:13]}  O-O-O {[%clk 0:02:21]} 16. b4 {[%clk 0:02:11]}  Ne7 {[%clk 0:02:18]} 17. O-O {[%clk 0:02:09]}  Nf5 {[%clk 0:02:18]} 18. a4 {[%clk 0:02:03]}  Nxh4 {[%clk 0:02:15]} 19. Ncxd5 {[%clk 0:01:30]}  exd5 {[%clk 0:02:07]} 20. Nxd5 {[%clk 0:01:30]}  Qa6 {[%clk 0:02:02]} 21. b5 {[%clk 0:01:30]}  Qa5 {[%clk 0:02:00]} 22. e4 {[%clk 0:01:04]}  Kb8 {[%clk 0:01:48]} 23. Qa3 {[%clk 0:00:51]}  Nb6 {[%clk 0:01:46]} 24. Nxb6 {[%clk 0:00:37]}  Qxb6 {[%clk 0:01:47]} 25. c3 {[%clk 0:00:34]}  d5 {[%clk 0:01:42]} 26. a5 {[%clk 0:00:33]}  Qe6 {[%clk 0:01:39]} 27. a6 {[%clk 0:00:23]}  b6 {[%clk 0:01:37]} 28. Rb2 {[%clk 0:00:23]}  dxe4 {[%clk 0:01:34]} 29. Re2 {[%clk 0:00:22]}  Nxf3+ {[%clk 0:01:26]} 30. Rxf3 {[%clk 0:00:20]}  Qg4+ {[%clk 0:01:27]} 31. Rg2 {[%clk 0:00:20]}  Qxf3 {[%clk 0:01:26]} 32. Qe7 {[%clk 0:00:20]}  Qe3+ {[%clk 0:01:17]} 33. Kh1 {[%clk 0:00:17]}  Qh3+ {[%clk 0:01:14]} 34. Kg1 {[%clk 0:00:17]}  Qd7 {[%clk 0:01:14]} 35. Qe5+ {[%clk 0:00:16]}  Qd6 {[%clk 0:01:13]} 36. Qxe4 {[%clk 0:00:17]}  Qd5 {[%clk 0:01:08]} 37. Qe7 {[%clk 0:00:16]}  Rhe8 {[%clk 0:01:05]} 38. Qf6 {[%clk 0:00:14]}  Re6 {[%clk 0:01:03]} 39. Qf4+ {[%clk 0:00:13]}  Ka8 {[%clk 0:01:00]} 40. Rf2 {[%clk 0:00:12]}  Re1+ {[%clk 0:00:58]} 41. Rf1 {[%clk 0:00:13]}  Rxf1+ {[%clk 0:00:58]} 42. Kxf1 {[%clk 0:00:13]}  Qf5 {[%clk 0:00:57]} 43. Qxf5 {[%clk 0:00:13]}  gxf5 {[%clk 0:00:58]} 44. Kf2 {[%clk 0:00:14]}  Rg8 {[%clk 0:00:58]} 45. Kf3 {[%clk 0:00:14]}  Rxg5 {[%clk 0:00:59]} 46. Kf4 {[%clk 0:00:15]}  Rg1 {[%clk 0:00:54]} 47. Kxf5 {[%clk 0:00:15]}  Rc1 {[%clk 0:00:54]} 48. d5 {[%clk 0:00:15]}  Rxc3 {[%clk 0:00:54]} 49. d6 {[%clk 0:00:16]}  Rd3 {[%clk 0:00:55]} 50. Ke5 {[%clk 0:00:17]} 0-1


[Site "https://www.chess.com"]

[Event "Titled Tuesday Blitz November 01 Late 2022"]
[White "Veleshnja, Zino"]
[Black "Gubajdullin, Alexei"]
[WhiteFideId "4701313"]
[BlackFideId "4141202"]
[WhiteElo "2167"]
[BlackElo "2200"]
[Result "1-0"]
[Round "03"]
[TimeControl "180+1"]
[Date "2022.11.02"]
[WhiteClock "0:00:33"]
[BlackClock "0:00:11"]

1. d4 {[%clk 0:03:00]}  Nf6 {[%clk 0:02:38]} 2. c4 {[%clk 0:03:01]}  g6 {[%clk 0:02:38]} 3. Nc3 {[%clk 0:03:00]}  Bg7 {[%clk 0:02:38]} 4. e4 {[%clk 0:03:00]}  d6 {[%clk 0:02:38]} 5. Be2 {[%clk 0:03:00]}  O-O {[%clk 0:02:38]} 6. Bg5 {[%clk 0:03:01]}  Na6 {[%clk 0:02:35]} 7. h4 {[%clk 0:02:59]}  h5 {[%clk 0:02:28]} 8. Qd2 {[%clk 0:02:52]}  e5 {[%clk 0:02:25]} 9. d5 {[%clk 0:02:52]}  Nc5 {[%clk 0:02:25]} 10. f3 {[%clk 0:02:52]}  a5 {[%clk 0:02:24]} 11. O-O-O {[%clk 0:02:52]}  Qe8 {[%clk 0:02:21]} 12. Nh3 {[%clk 0:02:51]}  Bd7 {[%clk 0:02:16]} 13. Nf2 {[%clk 0:02:48]}  c6 {[%clk 0:02:03]} 14. Bxf6 {[%clk 0:02:49]}  Bxf6 {[%clk 0:02:03]} 15. g4 {[%clk 0:02:49]}  Kg7 {[%clk 0:01:55]} 16. gxh5 {[%clk 0:02:42]}  Rh8 {[%clk 0:01:53]} 17. Ng4 {[%clk 0:02:38]}  Be7 {[%clk 0:01:46]} 18. h6+ {[%clk 0:02:31]}  Kh7 {[%clk 0:01:43]} 19. f4 {[%clk 0:02:31]}  exf4 {[%clk 0:01:16]} 20. Qxf4 {[%clk 0:02:30]}  Bxg4 {[%clk 0:01:15]} 21. Bxg4 {[%clk 0:02:29]}  Rf8 {[%clk 0:01:09]} 22. h5 {[%clk 0:02:25]}  Qd8 {[%clk 0:01:08]} 23. Kb1 {[%clk 0:02:24]}  Bg5 {[%clk 0:01:07]} 24. Qf3 {[%clk 0:02:17]}  Qe7 {[%clk 0:01:06]} 25. Rhg1 {[%clk 0:01:48]}  a4 {[%clk 0:01:04]} 26. Rdf1 {[%clk 0:01:31]}  a3 {[%clk 0:01:02]} 27. Rg2 {[%clk 0:01:03]}  axb2 {[%clk 0:01:00]} 28. Rfg1 {[%clk 0:01:03]}  Bf6 {[%clk 0:00:55]} 29. Bf5 {[%clk 0:01:00]}  Qe5 {[%clk 0:00:29]} 30. hxg6+ {[%clk 0:00:55]}  fxg6 {[%clk 0:00:28]} 31. Rxg6 {[%clk 0:00:53]}  Kh8 {[%clk 0:00:28]} 32. Rg7 {[%clk 0:00:46]}  Bxg7 {[%clk 0:00:14]} 33. hxg7+ {[%clk 0:00:47]}  Kg8 {[%clk 0:00:14]} 34. Bh7+ {[%clk 0:00:32]}  Kxh7 {[%clk 0:00:13]} 35. g8=Q+ {[%clk 0:00:32]}  Rxg8 {[%clk 0:00:11]} 36. Qh3+ {[%clk 0:00:33]} 1-0


[Site "https://www.chess.com"]

[Event "Titled Tuesday Blitz November 01 Late 2022"]
[White "Vlassov, Nikolai"]
[Black "Gokerkan, Cem Kaan"]
[WhiteFideId "4103360"]
[BlackFideId "6336760"]
[WhiteElo "2324"]
[BlackElo "2365"]
[Result "0-1"]
[Round "03"]
[TimeControl "180+1"]
[Date "2022.11.01"]
[WhiteClock "0:01:16"]
[BlackClock "0:00:52"]

1. e4 {[%clk 0:03:00]}  c5 {[%clk 0:02:59]} 2. c3 {[%clk 0:03:00]}  Nf6 {[%clk 0:02:57]} 3. e5 {[%clk 0:03:01]}  Nd5 {[%clk 0:02:58]} 4. d4 {[%clk 0:03:02]}  cxd4 {[%clk 0:02:58]} 5. cxd4 {[%clk 0:03:02]}  d6 {[%clk 0:02:59]} 6. Bc4 {[%clk 0:03:02]}  Nb6 {[%clk 0:02:56]} 7. Bb3 {[%clk 0:03:03]}  dxe5 {[%clk 0:02:54]} 8. Qh5 {[%clk 0:03:01]}  e6 {[%clk 0:02:52]} 9. dxe5 {[%clk 0:03:01]}  Nc6 {[%clk 0:02:51]} 10. Nc3 {[%clk 0:03:02]}  Nd4 {[%clk 0:02:45]} 11. Nf3 {[%clk 0:03:01]}  Nxb3 {[%clk 0:02:45]} 12. axb3 {[%clk 0:03:02]}  Qd3 {[%clk 0:02:45]} 13. Bd2 {[%clk 0:02:47]}  Bd7 {[%clk 0:02:32]} 14. O-O-O {[%clk 0:02:47]}  Rc8 {[%clk 0:02:26]} 15. Ng5 {[%clk 0:02:40]}  Qg6 {[%clk 0:02:15]} 16. Qxg6 {[%clk 0:02:37]}  hxg6 {[%clk 0:02:16]} 17. Kb1 {[%clk 0:02:31]}  Bc6 {[%clk 0:02:12]} 18. Nge4 {[%clk 0:02:29]}  Nd5 {[%clk 0:01:55]} 19. f3 {[%clk 0:02:25]}  Rh5 {[%clk 0:01:48]} 20. Nd6+ {[%clk 0:02:05]}  Bxd6 {[%clk 0:01:47]} 21. exd6 {[%clk 0:02:05]}  Kd7 {[%clk 0:01:30]} 22. Nxd5 {[%clk 0:01:39]}  Bxd5 {[%clk 0:01:30]} 23. Bb4 {[%clk 0:01:39]}  a5 {[%clk 0:01:09]} 24. Bxa5 {[%clk 0:01:34]}  Bxb3 {[%clk 0:01:09]} 25. Rc1 {[%clk 0:01:31]}  Rxc1+ {[%clk 0:01:09]} 26. Rxc1 {[%clk 0:01:30]}  Rxa5 {[%clk 0:01:10]} 27. Rc7+ {[%clk 0:01:29]}  Kxd6 {[%clk 0:01:09]} 28. Rxb7 {[%clk 0:01:28]}  Ba2+ {[%clk 0:00:54]} 29. Kc2 {[%clk 0:01:28]}  Rc5+ {[%clk 0:00:55]} 30. Kd2 {[%clk 0:01:28]}  Rc7 {[%clk 0:00:53]} 31. Rb6+ {[%clk 0:01:24]}  Ke7 {[%clk 0:00:53]} 32. b4 {[%clk 0:01:16]}  Bd5 {[%clk 0:00:53]} 33. Kd3 {[%clk 0:01:16]}  Rb7 {[%clk 0:00:52]} 0-1


[Site "https://www.chess.com"]

[Event "Titled Tuesday Blitz November 01 Late 2022"]
[White "Wessendorf, Thomas, Dr."]
[Black "Khandelwal, Ankush"]
[WhiteFideId "4604270"]
[BlackFideId "413470"]
[WhiteElo "2280"]
[BlackElo "2271"]
[Result "0-1"]
[Round "03"]
[TimeControl "180+1"]
[Date "2022.11.02"]
[WhiteClock "0:00:09"]
[BlackClock "0:00:07"]

1. e4 {[%clk 0:02:58]}  c5 {[%clk 0:03:00]} 2. Nf3 {[%clk 0:02:58]}  d6 {[%clk 0:03:00]} 3. d4 {[%clk 0:02:58]}  cxd4 {[%clk 0:03:01]} 4. Nxd4 {[%clk 0:02:58]}  Nf6 {[%clk 0:03:01]} 5. Nc3 {[%clk 0:02:58]}  a6 {[%clk 0:03:02]} 6. Be3 {[%clk 0:02:58]}  e5 {[%clk 0:03:01]} 7. Nb3 {[%clk 0:02:57]}  Be7 {[%clk 0:03:02]} 8. Qd2 {[%clk 0:02:57]}  Be6 {[%clk 0:03:02]} 9. f4 {[%clk 0:02:57]}  exf4 {[%clk 0:02:54]} 10. Bxf4 {[%clk 0:02:56]}  Nc6 {[%clk 0:02:55]} 11. O-O-O {[%clk 0:02:53]}  Ne5 {[%clk 0:02:54]} 12. Nd4 {[%clk 0:02:43]}  Qc7 {[%clk 0:02:52]} 13. Nf5 {[%clk 0:02:34]}  Bxf5 {[%clk 0:02:43]} 14. exf5 {[%clk 0:02:33]}  O-O {[%clk 0:02:41]} 15. g4 {[%clk 0:02:33]}  Nexg4 {[%clk 0:02:26]} 16. Rg1 {[%clk 0:02:30]}  Kh8 {[%clk 0:02:25]} 17. Bg2 {[%clk 0:02:09]}  Rac8 {[%clk 0:02:18]} 18. Kb1 {[%clk 0:02:07]}  b5 {[%clk 0:02:17]} 19. Bf3 {[%clk 0:01:58]}  b4 {[%clk 0:01:58]} 20. Nd5 {[%clk 0:01:42]}  Nxd5 {[%clk 0:01:55]} 21. Bxd5 {[%clk 0:01:42]}  Ne5 {[%clk 0:01:42]} 22. Qg2 {[%clk 0:01:33]}  Bf6 {[%clk 0:01:40]} 23. Rd2 {[%clk 0:01:23]}  Nc4 {[%clk 0:01:20]} 24. Bxc4 {[%clk 0:01:14]}  Qxc4 {[%clk 0:01:21]} 25. Bxd6 {[%clk 0:01:04]}  Rfd8 {[%clk 0:01:17]} 26. Rgd1 {[%clk 0:00:53]}  a5 {[%clk 0:01:05]} 27. Qd5 {[%clk 0:00:47]}  Qg4 {[%clk 0:00:27]} 28. Qxf7 {[%clk 0:00:42]}  a4 {[%clk 0:00:27]} 29. h3 {[%clk 0:00:25]}  Qxf5 {[%clk 0:00:21]} 30. a3 {[%clk 0:00:15]}  b3 {[%clk 0:00:16]} 31. Rc1 {[%clk 0:00:11]}  Rxc2 {[%clk 0:00:06]} 32. Rcxc2 {[%clk 0:00:09]}  bxc2+ {[%clk 0:00:06]} 33. Rxc2 {[%clk 0:00:09]}  Rc8 {[%clk 0:00:07]} 0-1


[Site "https://www.chess.com"]

[Event "Titled Tuesday Blitz November 01 Late 2022"]
[White "Xiong, Jeffery"]
[Black "Bersamina, Paulo"]
[WhiteFideId "2047640"]
[BlackFideId "5206995"]
[WhiteElo "2725"]
[BlackElo "2332"]
[Result "1-0"]
[Round "03"]
[TimeControl "180+1"]
[Date "2022.11.01"]
[WhiteClock "0:00:14"]
[BlackClock "0:00:06"]

1. e4 {[%clk 0:03:00]}  c5 {[%clk 0:02:59]} 2. Nf3 {[%clk 0:03:00]}  e6 {[%clk 0:03:00]} 3. g3 {[%clk 0:02:58]}  Nc6 {[%clk 0:02:58]} 4. Bg2 {[%clk 0:02:58]}  Nf6 {[%clk 0:02:59]} 5. Qe2 {[%clk 0:02:59]}  e5 {[%clk 0:02:59]} 6. Na3 {[%clk 0:02:58]}  Be7 {[%clk 0:02:56]} 7. Nc4 {[%clk 0:02:59]}  d6 {[%clk 0:02:56]} 8. c3 {[%clk 0:02:59]}  O-O {[%clk 0:02:56]} 9. O-O {[%clk 0:03:00]}  Be6 {[%clk 0:02:55]} 10. d3 {[%clk 0:03:00]}  Qd7 {[%clk 0:02:53]} 11. Bg5 {[%clk 0:02:59]}  h6 {[%clk 0:02:45]} 12. Bxf6 {[%clk 0:02:58]}  Bxf6 {[%clk 0:02:46]} 13. a4 {[%clk 0:02:58]}  b6 {[%clk 0:02:38]} 14. Nfd2 {[%clk 0:02:54]}  d5 {[%clk 0:02:27]} 15. exd5 {[%clk 0:02:53]}  Bxd5 {[%clk 0:02:28]} 16. Bxd5 {[%clk 0:02:43]}  Qxd5 {[%clk 0:02:27]} 17. Ne4 {[%clk 0:02:44]}  Be7 {[%clk 0:02:25]} 18. Qf3 {[%clk 0:02:23]}  Rad8 {[%clk 0:02:24]} 19. Ne3 {[%clk 0:02:23]}  Qe6 {[%clk 0:02:23]} 20. Nf5 {[%clk 0:02:20]}  Rfe8 {[%clk 0:02:24]} 21. h4 {[%clk 0:02:17]}  Bf8 {[%clk 0:02:17]} 22. h5 {[%clk 0:02:17]}  Ne7 {[%clk 0:01:40]} 23. Nxe7+ {[%clk 0:02:06]}  Bxe7 {[%clk 0:01:33]} 24. g4 {[%clk 0:02:07]}  Bg5 {[%clk 0:01:31]} 25. a5 {[%clk 0:02:03]}  Bf4 {[%clk 0:01:27]} 26. axb6 {[%clk 0:02:02]}  axb6 {[%clk 0:01:28]} 27. Ra6 {[%clk 0:02:00]}  Qc6 {[%clk 0:01:26]} 28. c4 {[%clk 0:01:42]}  Rd4 {[%clk 0:01:21]} 29. Kg2 {[%clk 0:01:38]}  Red8 {[%clk 0:01:21]} 30. Nc3 {[%clk 0:01:38]}  Qxf3+ {[%clk 0:01:17]} 31. Kxf3 {[%clk 0:01:39]}  Rxd3+ {[%clk 0:01:18]} 32. Kg2 {[%clk 0:01:40]}  R8d4 {[%clk 0:00:59]} 33. Rxb6 {[%clk 0:01:32]}  Rxc4 {[%clk 0:00:59]} 34. Ra1 {[%clk 0:01:33]}  Rb4 {[%clk 0:00:54]} 35. Ra8+ {[%clk 0:01:32]}  Kh7 {[%clk 0:00:52]} 36. Rc6 {[%clk 0:01:33]}  Bc1 {[%clk 0:00:18]} 37. f3 {[%clk 0:01:26]}  Bxb2 {[%clk 0:00:17]} 38. Ne4 {[%clk 0:01:24]}  Rxe4 {[%clk 0:00:09]} 39. fxe4 {[%clk 0:01:25]}  Bd4 {[%clk 0:00:08]} 40. Rcc8 {[%clk 0:01:01]}  g6 {[%clk 0:00:07]} 41. Rc6 {[%clk 0:00:45]}  Rd2+ {[%clk 0:00:07]} 42. Kg3 {[%clk 0:00:45]}  Kg7 {[%clk 0:00:04]} 43. Ra7 {[%clk 0:00:45]}  Rf2 {[%clk 0:00:04]} 44. hxg6 {[%clk 0:00:41]}  Be3 {[%clk 0:00:04]} 45. Rxf7+ {[%clk 0:00:34]}  Rxf7 {[%clk 0:00:05]} 46. gxf7 {[%clk 0:00:35]}  Kxf7 {[%clk 0:00:05]} 47. Kf3 {[%clk 0:00:36]}  Bf4 {[%clk 0:00:02]} 48. Rxc5 {[%clk 0:00:36]}  Kg6 {[%clk 0:00:03]} 49. Rc6+ {[%clk 0:00:36]}  Kg5 {[%clk 0:00:03]} 50. Rc8 {[%clk 0:00:37]}  Kg6 {[%clk 0:00:01]} 51. Rg8+ {[%clk 0:00:36]}  Kf6 {[%clk 0:00:02]} 52. Ra8 {[%clk 0:00:36]}  Kg5 {[%clk 0:00:03]} 53. Ra1 {[%clk 0:00:37]}  Kh4 {[%clk 0:00:03]} 54. Rh1+ {[%clk 0:00:37]}  Kg5 {[%clk 0:00:04]} 55. Rh5+ {[%clk 0:00:38]}  Kg6 {[%clk 0:00:05]} 56. Ke2 {[%clk 0:00:39]}  Bg5 {[%clk 0:00:05]} 57. Kd3 {[%clk 0:00:39]}  Kf6 {[%clk 0:00:05]} 58. Kc4 {[%clk 0:00:40]}  Ke6 {[%clk 0:00:06]} 59. Kc5 {[%clk 0:00:40]}  Be3+ {[%clk 0:00:06]} 60. Kc6 {[%clk 0:00:41]}  Bg5 {[%clk 0:00:07]} 61. Rxg5 {[%clk 0:00:29]}  Kf6 {[%clk 0:00:06]} 62. Rh5 {[%clk 0:00:14]} 1-0


[Site "https://www.chess.com"]

[Event "Titled Tuesday Blitz November 01 Late 2022"]
[White "Zakhartsov, Vladimir"]
[Black "Firouzja, Alireza"]
[WhiteFideId "4145097"]
[BlackFideId "12573981"]
[WhiteElo "2825"]
[BlackElo "3114"]
[Result "1-0"]
[Round "03"]
[TimeControl "180+1"]
[Date "2022.11.01"]
[WhiteClock "0:01:00"]
[BlackClock "0:00:54"]

1. e4 {[%clk 0:02:56]}  g6 {[%clk 0:03:00]} 2. d4 {[%clk 0:02:57]}  Bg7 {[%clk 0:03:01]} 3. Nf3 {[%clk 0:02:56]}  d6 {[%clk 0:03:00]} 4. c3 {[%clk 0:02:56]}  Nf6 {[%clk 0:03:01]} 5. Bd3 {[%clk 0:02:55]}  O-O {[%clk 0:03:01]} 6. h3 {[%clk 0:02:56]}  Nbd7 {[%clk 0:03:01]} 7. O-O {[%clk 0:02:56]}  e5 {[%clk 0:03:02]} 8. dxe5 {[%clk 0:02:57]}  dxe5 {[%clk 0:03:03]} 9. a4 {[%clk 0:02:57]}  Nc5 {[%clk 0:03:01]} 10. Bc2 {[%clk 0:02:54]}  Nfxe4 {[%clk 0:02:59]} 11. b4 {[%clk 0:02:49]}  Nxc3 {[%clk 0:02:28]} 12. Nxc3 {[%clk 0:02:48]}  e4 {[%clk 0:02:29]} 13. Qxd8 {[%clk 0:02:36]}  Rxd8 {[%clk 0:02:29]} 14. Ra3 {[%clk 0:02:32]}  exf3 {[%clk 0:02:29]} 15. bxc5 {[%clk 0:02:32]}  fxg2 {[%clk 0:02:30]} 16. Kxg2 {[%clk 0:02:31]}  Be6 {[%clk 0:02:21]} 17. Be3 {[%clk 0:02:25]}  c6 {[%clk 0:02:02]} 18. Be4 {[%clk 0:02:18]}  Rd7 {[%clk 0:02:01]} 19. a5 {[%clk 0:02:12]}  Bc4 {[%clk 0:01:55]} 20. Rc1 {[%clk 0:02:11]}  Re8 {[%clk 0:01:54]} 21. Bf3 {[%clk 0:02:10]}  Ba6 {[%clk 0:01:31]} 22. Ne4 {[%clk 0:02:07]}  Re5 {[%clk 0:01:30]} 23. Nd6 {[%clk 0:01:55]}  Bf8 {[%clk 0:01:31]} 24. Rd1 {[%clk 0:01:51]}  Re6 {[%clk 0:01:26]} 25. Ra2 {[%clk 0:01:34]}  Bxd6 {[%clk 0:01:20]} 26. Rad2 {[%clk 0:01:33]}  Bxc5 {[%clk 0:01:17]} 27. Rxd7 {[%clk 0:01:31]}  Bxe3 {[%clk 0:01:17]} 28. fxe3 {[%clk 0:01:30]}  Rxe3 {[%clk 0:01:18]} 29. Rc7 {[%clk 0:01:25]}  Re5 {[%clk 0:01:16]} 30. Rdd7 {[%clk 0:01:23]}  Rg5+ {[%clk 0:01:16]} 31. Kh2 {[%clk 0:01:22]}  Bc4 {[%clk 0:01:05]} 32. Rxb7 {[%clk 0:01:19]}  Rxa5 {[%clk 0:01:05]} 33. Rxa7 {[%clk 0:01:19]}  Rf5 {[%clk 0:01:03]} 34. Bxc6 {[%clk 0:01:17]}  Be6 {[%clk 0:01:04]} 35. Rd3 {[%clk 0:01:15]}  Re5 {[%clk 0:01:04]} 36. Rb7 {[%clk 0:01:14]}  Kg7 {[%clk 0:01:03]} 37. Rb2 {[%clk 0:01:12]}  f5 {[%clk 0:01:02]} 38. Rb7+ {[%clk 0:01:11]}  Kh6 {[%clk 0:01:01]} 39. Re7 {[%clk 0:01:10]}  f4 {[%clk 0:00:57]} 40. Bd7 {[%clk 0:01:08]}  Re2+ {[%clk 0:00:57]} 41. Kg1 {[%clk 0:01:07]}  Bc4 {[%clk 0:00:57]} 42. Rxe2 {[%clk 0:01:07]}  Bxd3 {[%clk 0:00:58]} 43. Re5 {[%clk 0:01:07]}  g5 {[%clk 0:00:58]} 44. Be8 {[%clk 0:01:01]}  Ba6 {[%clk 0:00:54]} 45. Re6+ {[%clk 0:01:00]} 1-0


[Site "https://www.chess.com"]

[Event "Titled Tuesday Blitz November 01 Late 2022"]
[White "Abdyzhapar, Asylbek"]
[Black "Goncalves, Davi Sulzbacher"]
[WhiteFideId "13800337"]
[BlackFideId "2154510"]
[WhiteElo "2746"]
[BlackElo "2494"]
[Result "0-1"]
[Round "04"]
[TimeControl "180+1"]
[Date "2022.11.02"]
[WhiteClock "0:00:44"]
[BlackClock "0:00:03"]

1. c4 {[%clk 0:03:00]}  Nf6 {[%clk 0:02:59]} 2. g3 {[%clk 0:03:00]}  c5 {[%clk 0:02:59]} 3. Bg2 {[%clk 0:03:01]}  g6 {[%clk 0:02:59]} 4. Nf3 {[%clk 0:03:02]}  Bg7 {[%clk 0:03:00]} 5. O-O {[%clk 0:03:03]}  O-O {[%clk 0:03:00]} 6. b3 {[%clk 0:03:02]}  d5 {[%clk 0:02:57]} 7. Bb2 {[%clk 0:03:01]}  d4 {[%clk 0:02:38]} 8. e3 {[%clk 0:03:01]}  Nc6 {[%clk 0:02:38]} 9. exd4 {[%clk 0:03:00]}  cxd4 {[%clk 0:02:39]} 10. Re1 {[%clk 0:03:00]}  Bf5 {[%clk 0:02:32]} 11. d3 {[%clk 0:02:57]}  Nd7 {[%clk 0:02:31]} 12. Nh4 {[%clk 0:02:51]}  Be6 {[%clk 0:02:30]} 13. a3 {[%clk 0:02:49]}  a5 {[%clk 0:02:26]} 14. Nd2 {[%clk 0:02:49]}  Qb6 {[%clk 0:02:08]} 15. Rb1 {[%clk 0:02:46]}  Nc5 {[%clk 0:01:59]} 16. Qc2 {[%clk 0:02:42]}  g5 {[%clk 0:01:39]} 17. Nhf3 {[%clk 0:02:41]}  Bf5 {[%clk 0:01:39]} 18. Bf1 {[%clk 0:02:40]}  h6 {[%clk 0:01:31]} 19. Bc1 {[%clk 0:02:33]}  e6 {[%clk 0:01:17]} 20. h4 {[%clk 0:02:30]}  g4 {[%clk 0:01:07]} 21. Nh2 {[%clk 0:02:30]}  Ne5 {[%clk 0:01:06]} 22. Ne4 {[%clk 0:02:23]}  Bxe4 {[%clk 0:01:04]} 23. dxe4 {[%clk 0:02:23]}  d3 {[%clk 0:01:00]} 24. Qd1 {[%clk 0:02:23]}  Rfd8 {[%clk 0:00:47]} 25. Bd2 {[%clk 0:02:23]}  h5 {[%clk 0:00:39]} 26. b4 {[%clk 0:02:18]}  axb4 {[%clk 0:00:39]} 27. axb4 {[%clk 0:02:19]}  Na4 {[%clk 0:00:39]} 28. c5 {[%clk 0:02:19]}  Qc6 {[%clk 0:00:33]} 29. Bg2 {[%clk 0:02:18]}  b6 {[%clk 0:00:27]} 30. cxb6 {[%clk 0:02:04]}  Nxb6 {[%clk 0:00:25]} 31. b5 {[%clk 0:02:01]}  Qc2 {[%clk 0:00:22]} 32. Rc1 {[%clk 0:01:58]}  Qxd1 {[%clk 0:00:22]} 33. Rexd1 {[%clk 0:01:58]}  Nbc4 {[%clk 0:00:20]} 34. Bf4 {[%clk 0:01:53]}  Rab8 {[%clk 0:00:18]} 35. Rxc4 {[%clk 0:01:53]}  Nxc4 {[%clk 0:00:17]} 36. Bxb8 {[%clk 0:01:52]}  Rxb8 {[%clk 0:00:18]} 37. Rxd3 {[%clk 0:01:52]}  Rxb5 {[%clk 0:00:19]} 38. Nf1 {[%clk 0:01:51]}  Bh6 {[%clk 0:00:17]} 39. Rc3 {[%clk 0:01:46]}  Rb4 {[%clk 0:00:17]} 40. Rc2 {[%clk 0:01:44]}  Kg7 {[%clk 0:00:17]} 41. Nh2 {[%clk 0:01:37]}  Kf6 {[%clk 0:00:16]} 42. Bf1 {[%clk 0:01:38]}  Nd2 {[%clk 0:00:14]} 43. Bd3 {[%clk 0:01:34]}  Nxe4 {[%clk 0:00:09]} 44. Kg2 {[%clk 0:01:33]}  Nd2 {[%clk 0:00:08]} 45. Ra2 {[%clk 0:01:29]}  Rb3 {[%clk 0:00:06]} 46. Bc2 {[%clk 0:01:29]}  Rc3 {[%clk 0:00:06]} 47. Bh7 {[%clk 0:01:28]}  Nc4 {[%clk 0:00:05]} 48. Nf1 {[%clk 0:01:26]}  Ra3 {[%clk 0:00:05]} 49. Rc2 {[%clk 0:01:25]}  Nd6 {[%clk 0:00:04]} 50. Nd2 {[%clk 0:01:21]}  Ke7 {[%clk 0:00:03]} 51. Ne4 {[%clk 0:01:17]}  Nxe4 {[%clk 0:00:02]} 52. Bxe4 {[%clk 0:01:17]}  f5 {[%clk 0:00:02]} 53. Bb7 {[%clk 0:01:17]}  f4 {[%clk 0:00:03]} 54. Bc8 {[%clk 0:01:12]}  f3+ {[%clk 0:00:01]} 55. Kh2 {[%clk 0:01:12]}  e5 {[%clk 0:00:01]} 56. Rc6 {[%clk 0:01:11]}  Be3 {[%clk 0:00:01]} 57. fxe3 {[%clk 0:01:05]}  Rxe3 {[%clk 0:00:02]} 58. Ba6 {[%clk 0:01:01]}  Re1 {[%clk 0:00:02]} 59. Rc2 {[%clk 0:00:55]}  e4 {[%clk 0:00:02]} 60. Rc7+ {[%clk 0:00:46]}  Kd6 {[%clk 0:00:02]} 61. Rc2 {[%clk 0:00:47]}  e3 {[%clk 0:00:02]} 62. Bb5 {[%clk 0:00:48]}  Ke5 {[%clk 0:00:02]} 63. Ba6 {[%clk 0:00:48]}  Kd5 {[%clk 0:00:03]} 64. Ra2 {[%clk 0:00:47]}  e2 {[%clk 0:00:03]} 65. Bxe2 {[%clk 0:00:45]}  Rxe2+ {[%clk 0:00:02]} 66. Rxe2 {[%clk 0:00:44]}  fxe2 {[%clk 0:00:03]} 0-1


[Site "https://www.chess.com"]

[Event "Titled Tuesday Blitz November 01 Late 2022"]
[White "Aguilar, Juan"]
[Black "Yi, Richard"]
[WhiteFideId "3800091"]
[BlackFideId "2079518"]
[WhiteElo "2426"]
[BlackElo "2147"]
[Result "1-0"]
[Round "04"]
[TimeControl "180+1"]
[Date "2022.11.02"]
[WhiteClock "0:02:20"]
[BlackClock "0:02:05"]

1. d4 {[%clk 0:03:00]}  Nf6 {[%clk 0:02:59]} 2. c4 {[%clk 0:03:01]}  g6 {[%clk 0:02:59]} 3. Nc3 {[%clk 0:03:01]}  d5 {[%clk 0:02:59]} 4. cxd5 {[%clk 0:03:00]}  Nxd5 {[%clk 0:03:00]} 5. e4 {[%clk 0:03:01]}  Nxc3 {[%clk 0:03:01]} 6. bxc3 {[%clk 0:03:02]}  Bg7 {[%clk 0:03:02]} 7. Bc4 {[%clk 0:03:02]}  c5 {[%clk 0:03:02]} 8. Ne2 {[%clk 0:03:03]}  Nc6 {[%clk 0:03:02]} 9. Be3 {[%clk 0:03:03]}  O-O {[%clk 0:03:03]} 10. h4 {[%clk 0:03:04]}  cxd4 {[%clk 0:03:01]} 11. cxd4 {[%clk 0:03:04]}  Qa5+ {[%clk 0:03:01]} 12. Kf1 {[%clk 0:03:04]}  Rd8 {[%clk 0:02:55]} 13. Qb3 {[%clk 0:02:54]}  e6 {[%clk 0:02:53]} 14. e5 {[%clk 0:02:52]}  Rb8 {[%clk 0:02:40]} 15. h5 {[%clk 0:02:49]}  Nb4 {[%clk 0:02:31]} 16. hxg6 {[%clk 0:02:40]}  hxg6 {[%clk 0:02:32]} 17. Bg5 {[%clk 0:02:35]}  Rd7 {[%clk 0:02:21]} 18. Qh3 {[%clk 0:02:34]}  Nc2 {[%clk 0:02:08]} 19. Qh7+ {[%clk 0:02:25]}  Kf8 {[%clk 0:02:08]} 20. Qxg7+ {[%clk 0:02:21]}  Kxg7 {[%clk 0:02:05]} 21. Bf6+ {[%clk 0:02:21]}  Kg8 {[%clk 0:02:05]} 22. Rh8# {[%clk 0:02:20]} 1-0


[Site "https://www.chess.com"]